bitfinex-derivatives/quotes_SOLF0:USTF0_20250923
["timestamp","ask_amount","ask_price","bid_price","bid_amount"]
[1758588231341,7.56,220.42,220.36,6.95]
[1758588231537,7.56,220.4,220.36,6.95]
[1758588231735,3.34615428,220.39,220.36,6.95]
[1758588231935,3.34615428,220.38,220.36,6.95]
[1758588232140,7.56,220.4,220.36,6.95]
[1758588232346,3.34656225,220.39,220.36,6.95]
[1758588232545,3.34656225,220.38,220.36,6.95]
[1758588232840,7.56,220.4,220.36,6.95]
[1758588233041,3.34657252,220.39,220.35,4.0805]
[1758588233246,3.34657252,220.38,220.36,6.95]
[1758588233547,7.56,220.44,220.37,4.0803]
[1758588233847,3.34693686,220.43,220.37,4.0803]
[1758588234046,7.56,220.41,220.38,6.95]
[1758588234246,3.34693686,220.4,220.38,6.95]
[1758588234449,3.34693686,220.39,220.38,6.95]
[1758588234851,7.56,220.47,220.4,4.0796]
[1758588235543,7.56,220.47,220.4,11.0296]
[1758588238156,7.56,220.47,220.41,4.0794]
[1758588238657,7.56,220.47,220.35,2.22237205]
[1758588238658,12.63850057,220.47,220.38,4.0801]
[1758588239854,12.63850057,220.47,220.37,6.95]
[1758588239855,9.78237205,220.45,220.37,6.95]
[1758588240954,14.86087262,220.45,220.37,6.95]
[1758588241255,14.86087262,220.45,220.34,6.94]
[1758588241455,7.32,220.42,220.34,6.94]
[1758588242660,7.32,220.42,220.34,11.0207]
[1758588246755,3.35295735,220.41,220.34,11.0207]
[1758588246955,3.35295735,220.4,220.34,11.0207]
[1758588247159,10.67295735,220.39,220.35,6.94]
[1758588247458,3.35295735,220.38,220.35,6.94]
[1758588247659,3.35295735,220.37,220.35,6.94]
[1758588247859,3.35295735,220.36,220.35,6.94]
[1758588249268,10.67295735,220.36,220.32,6.94]
[1758588249460,10.67295735,220.36,220.31,98.14286761]
[1758588249461,3.35295735,220.35,220.31,98.14286761]
[1758588249658,3.35295735,220.34,220.31,98.14286761]
[1758588249862,7.32,220.36,220.31,98.14286761]
[1758588250062,3.35068893,220.35,220.32,6.94]
[1758588250262,3.35068893,220.34,220.32,6.94]
[1758588250464,7.32,220.36,220.31,102.22416761]
[1758588250659,3.34984668,220.35,220.32,6.94]
[1758588250963,3.34984668,220.35,220.31,102.22416761]
[1758588250964,7.32,220.36,220.31,102.22416761]
[1758588251158,3.34983664,220.35,220.31,102.22416761]
[1758588251367,7.32,220.43,220.34,6.94]
[1758588251568,3.34931003,220.42,220.34,6.94]
[1758588251764,3.34931003,220.41,220.34,6.94]
[1758588251963,3.34931003,220.4,220.34,6.94]
[1758588252163,3.34931003,220.39,220.32,6.94]
[1758588252368,3.34931003,220.38,220.32,6.94]
[1758588252573,3.34931003,220.37,220.32,6.94]
[1758588252768,3.34931003,220.36,220.35,4.0807]
[1758588252968,3.34931003,220.36,220.35,11.0207]
[1758588254177,7.32,220.43,220.35,11.0207]
[1758588254374,3.34843059,220.42,220.35,11.0207]
[1758588254576,3.34843059,220.41,220.35,11.0207]
[1758588254772,3.34843059,220.4,220.35,4.0807]
[1758588254976,5.07850057,220.44,220.31,100.36523966]
[1758588254977,3.34843059,220.39,220.38,6.94]
[1758588256780,7.09,220.47,220.39,63.4657]
[1758588257082,12.16850057,220.5,220.4,7.17]
[1758588257782,12.16850057,220.5,220.39,63.4657]
[1758588257783,7.09,220.5,220.42,7.17]
[1758588258376,7.09,220.5,220.42,11.2493]
[1758588258982,7.09,220.5,220.44,11.2489]
[1758588259780,0.72860151,220.52,220.46,11.2486]
[1758588260086,7.09,220.52,220.46,7.17]
[1758588260383,7.09,220.52,220.43,7.17]
[1758588260580,7.09,220.52,220.43,11.2491]
[1758588260784,7.09,220.52,220.43,4.0791]
[1758588260985,12.16850057,220.52,220.43,4.0791]
[1758588263286,12.16850057,220.52,220.4,11.2496]
[1758588263487,7.09,220.5,220.4,11.2496]
[1758588263788,12.16850057,220.5,220.4,4.0796]
[1758588264790,7.09,220.5,220.4,4.0796]
[1758588265089,7.09,220.5,220.42,4.0793]
[1758588265593,7.09,220.48,220.39,4.0798]
[1758588268691,3.33779923,220.47,220.39,4.0798]
[1758588268989,10.42779923,220.46,220.39,4.0798]
[1758588269189,3.33779923,220.45,220.39,4.0798]
[1758588269390,7.09,220.43,220.39,11.2498]
[1758588269594,3.33779923,220.42,220.39,11.2498]
[1758588270681,3.33779923,220.42,220.4,6.97]
[1758588271893,10.44779923,220.42,220.4,6.97]
[1758588272192,3.33779923,220.41,220.4,6.97]
[1758588272592,7.11,220.45,220.4,6.97]
[1758588272790,7.11,220.43,220.4,6.97]
[1758588272993,3.33779923,220.42,220.4,6.97]
[1758588274397,3.33779923,220.42,220.39,4.0798]
[1758588274792,3.33779923,220.41,220.4,6.97]
[1758588274995,3.33881611,220.45,220.41,4.0795]
[1758588275191,3.33881611,220.44,220.41,4.0795]
[1758588275396,3.33881611,220.43,220.42,6.97]
[1758588275691,3.33881611,220.43,220.38,4.08]
[1758588275995,3.33881611,220.42,220.38,4.08]
[1758588276189,7.11,220.45,220.4,4.0797]
[1758588276394,3.33893083,220.44,220.41,6.97]
[1758588276595,3.33893083,220.43,220.41,6.97]
[1758588276794,3.33893083,220.42,220.41,6.97]
[1758588277094,3.33893083,220.44,220.41,6.97]
[1758588277295,3.33893083,220.43,220.41,6.97]
[1758588277495,3.33893083,220.42,220.41,6.97]
[1758588277895,3.33893083,220.42,220.4,4.0797]
[1758588278093,3.33893083,220.41,220.4,4.0797]
[1758588278293,3.33893083,220.41,220.4,11.0497]
[1758588280295,3.33893083,220.41,220.37,11.0503]
[1758588280296,7.11,220.4,220.37,11.0503]
[1758588280497,3.33893083,220.39,220.37,11.0503]
[1758588280692,7.11,220.4,220.37,11.0503]
[1758588281094,1.4219731,220.44,220.37,4.0803]
[1758588281295,3.33818835,220.43,220.37,11.0503]
[1758588281495,10.44818835,220.42,220.37,4.0803]
[1758588281696,3.33818835,220.41,220.38,6.97]
[1758588282097,3.33818835,220.41,220.39,11.0499]
[1758588283099,3.33818835,220.41,220.39,4.0799]
[1758588283304,3.33818835,220.4,220.39,4.0799]
[1758588283602,3.33818835,220.44,220.39,4.0799]
[1758588283799,3.33818835,220.43,220.39,4.0799]
[1758588284199,3.33818835,220.43,220.41,11.0496]
[1758588287598,3.33818835,220.43,220.41,4.0796]
[1758588287800,3.33818835,220.42,220.41,4.0796]
[1758588288105,3.33818835,220.47,220.41,4.0796]
[1758588288407,10.44818835,220.46,220.42,6.97]
[1758588288702,3.33818835,220.45,220.42,6.97]
[1758588288908,3.33818835,220.44,220.42,6.97]
[1758588289094,3.33818835,220.43,220.42,6.97]
[1758588289299,3.33818835,220.44,220.42,6.97]
[1758588289502,3.33818835,220.43,220.42,6.97]
[1758588289804,3.33818835,220.44,220.42,6.97]
[1758588290102,3.33818835,220.43,220.42,6.97]
[1758588290299,10.44818835,220.43,220.41,4.0796]
[1758588290504,3.33818835,220.42,220.38,11.05]
[1758588290701,3.33818835,220.42,220.39,6.97]
[1758588292902,10.44818835,220.42,220.39,6.97]
[1758588293106,3.33818835,220.41,220.39,6.97]
[1758588293606,3.33818835,220.41,220.38,4.08]
[1758588293805,3.33818835,220.4,220.39,6.97]
[1758588294002,3.33818835,220.44,220.38,11.05]
[1758588294207,3.33818835,220.43,220.38,4.08]
[1758588294505,3.33818835,220.42,220.39,6.97]
[1758588294696,3.33818835,220.41,220.39,6.97]
[1758588294900,3.33818835,220.4,220.39,6.97]
[1758588295111,3.33818835,220.44,220.38,4.08]
[1758588295407,10.44818835,220.43,220.39,6.97]
[1758588295607,3.33818835,220.42,220.39,6.97]
[1758588295909,3.33818835,220.41,220.39,6.97]
[1758588296108,3.33818835,220.4,220.39,6.97]
[1758588296705,3.33818835,220.42,220.39,6.97]
[1758588296903,3.33818835,220.41,220.38,4.08]
[1758588297105,3.33818835,220.4,220.39,6.97]
[1758588297306,3.33818835,220.42,220.39,6.97]
[1758588297501,3.33818835,220.41,220.39,4.0798]
[1758588297702,7.11,220.43,220.4,6.97]
[1758588297903,3.34188317,220.42,220.4,6.97]
[1758588298098,3.34188317,220.41,220.4,6.97]
[1758588300211,10.45188317,220.41,220.39,4.0798]
[1758588300406,5.07850057,220.47,220.43,4.0791]
[1758588300610,6.92,220.47,220.44,7.18]
[1758588301206,1.4219731,220.46,220.4,11.2596]
[1758588301411,1.4219731,220.43,220.36,7.18]
[1758588301716,6.92,220.42,220.36,7.18]
[1758588302610,6.92,220.4,220.33,7.18]
[1758588303310,6.92,220.4,220.33,11.261]
[1758588305611,1.4219731,220.41,220.33,11.261]
[1758588305912,6.92,220.38,220.33,11.261]
[1758588306113,1.4219731,220.39,220.33,11.261]
[1758588306514,6.92,220.38,220.33,11.261]
[1758588306916,1.4219731,220.39,220.33,11.261]
[1758588307115,6.92,220.38,220.33,11.261]
[1758588307316,1.4219731,220.39,220.33,4.081]
[1758588307619,6.92,220.36,220.3,4.0816]
[1758588308817,6.92,220.36,220.29,7.18]
[1758588308818,1.4219731,220.35,220.27,4.0821]
[1758588309123,1.4219731,220.33,220.27,4.0821]
[1758588309621,6.92,220.32,220.27,4.0821]
[1758588309819,1.4219731,220.33,220.27,4.0821]
[1758588310017,6.92,220.32,220.27,4.0821]
[1758588311018,1.4219731,220.33,220.27,4.0821]
[1758588311218,6.92,220.32,220.24,4.0826]
[1758588311420,6.92,220.3,220.24,4.0826]
[1758588311921,1.4219731,220.29,220.23,7.18]
[1758588312422,10.24278411,220.28,220.24,7.18]
[1758588312623,8.3419731,220.33,220.24,7.18]
[1758588312810,8.3419731,220.33,220.28,7.18]
[1758588312811,3.32342137,220.32,220.28,7.18]
[1758588313011,3.32342137,220.31,220.28,7.18]
[1758588313220,3.32342137,220.3,220.27,1.4219731]
[1758588313416,6.92,220.36,220.28,7.18]
[1758588313615,3.32198819,220.35,220.28,7.18]
[1758588313915,10.24198819,220.34,220.3,7.18]
[1758588314112,10.24198819,220.33,220.3,7.18]
[1758588314317,3.32198819,220.32,220.3,7.18]
[1758588316217,10.24198819,220.32,220.28,7.18]
[1758588316423,1.4219731,220.33,220.26,4.0823]
[1758588316612,10.24011695,220.32,220.26,4.0823]
[1758588316811,1.4219731,220.33,220.26,6.95]
[1758588316812,3.32011695,220.31,220.26,6.95]
[1758588317123,10.36003286,220.3,220.23,11.0328]
[1758588317425,7.04,220.3,220.23,6.95]
[1758588317722,1.4219731,220.29,220.23,6.95]
[1758588320221,8.4619731,220.29,220.22,11.0331]
[1758588321818,1.4219731,220.25,220.19,4.0835]
[1758588322020,1.4219731,220.25,220.19,11.0335]
[1758588322219,8.4619731,220.26,220.19,6.95]
[1758588322623,1.4219731,220.26,220.21,4.0833]
[1758588322822,7.04,220.25,220.21,11.0333]
[1758588323519,38.6,220.32,220.21,4.0833]
[1758588323825,7.04,220.25,220.21,11.0333]
[1758588324225,7.04,220.25,220.22,6.95]
[1758588325830,8.4619731,220.28,220.21,6.95]
[1758588326127,7.04,220.28,220.22,4.0831]
[1758588326729,8.4619731,220.28,220.21,6.95]
[1758588327630,8.4619731,220.28,220.21,11.0333]
[1758588328127,7.04,220.31,220.24,4.0827]
[1758588328327,3.29775547,220.3,220.25,6.95]
[1758588328631,8.4619731,220.35,220.25,6.95]
[1758588328820,3.2967258,220.34,220.25,6.95]
[1758588329025,3.2967258,220.33,220.28,4.082]
[1758588329226,8.4619731,220.35,220.29,6.95]
[1758588329933,7.04,220.35,220.29,6.95]
[1758588330328,7.04,220.35,220.29,12.4535731]
[1758588330735,350.02,220.38,220.33,4.081]
[1758588330926,10.2165663,220.37,220.27,63.4999]
[1758588331236,6.92,220.35,220.31,8.3619731]
[1758588331732,6.92,220.43,220.35,6.94]
[1758588332037,6.92,220.47,220.4,1.4219731]
[1758588332236,6.92,220.47,220.38,11.0201]
[1758588332237,3.2952917,220.46,220.38,11.0201]
[1758588332438,6.92,220.38,220.27,1.4219731]
[1758588332639,3.2952917,220.37,220.28,6.94]
[1758588333131,3.2952917,220.37,220.29,5.5037731]
[1758588333937,3.2952917,220.37,220.34,6.94]
[1758588334135,6.92,220.42,220.34,6.94]
[1758588334439,3.29716803,220.41,220.34,6.94]
[1758588334635,3.29716803,220.4,220.34,6.94]
[1758588334835,3.29716803,220.39,220.33,8.3619731]
[1758588335038,6.92,220.42,220.33,8.3619731]
[1758588335228,3.29775126,220.41,220.33,8.3619731]
[1758588335432,3.29775126,220.4,220.33,6.94]
[1758588335634,3.29775126,220.39,220.33,6.94]
[1758588335935,10.21775126,220.39,220.33,6.94]
[1758588336229,10.21775126,220.39,220.13,7.60013643]
[1758588336230,6.92,220.33,220.29,6.94]
[1758588337029,6.92,220.33,220.25,4.0825]
[1758588337239,3.30074493,220.32,220.25,11.0225]
[1758588337435,6.92,220.36,220.25,11.0225]
[1758588337739,3.30100668,220.35,220.25,11.0225]
[1758588338034,3.3010081,220.34,220.25,11.0225]
[1758588338233,3.3010081,220.33,220.25,11.0225]
[1758588338436,3.3010081,220.32,220.25,11.0225]
[1758588338630,6.92,220.36,220.25,11.0225]
[1758588338832,3.30163105,220.35,220.25,11.0225]
[1758588339135,3.30163105,220.34,220.25,11.0225]
[1758588339329,3.30163105,220.33,220.25,11.0225]
[1758588339523,3.30163105,220.32,220.27,4.0822]
[1758588339727,6.92,220.36,220.28,6.94]
[1758588340022,3.30204211,220.35,220.28,6.94]
[1758588340222,3.30204211,220.34,220.28,6.94]
[1758588340434,3.30204211,220.33,220.27,11.0222]
[1758588340629,3.30204211,220.32,220.27,4.0822]
[1758588340836,6.92,220.36,220.28,6.94]
[1758588341034,3.30288472,220.35,220.28,6.94]
[1758588341234,3.30288472,220.34,220.28,6.94]
[1758588341425,6.92,220.32,220.28,6.94]
[1758588341631,3.30288472,220.31,220.28,6.94]
[1758588342333,3.30288472,220.31,220.24,11.0226]
[1758588342535,6.92,220.33,220.24,6.94]
[1758588342536,3.30288472,220.3,220.24,6.94]
[1758588342729,6.92,220.28,220.24,6.94]
[1758588343034,3.30288472,220.27,220.17,97.25839243]
[1758588343223,6.92,220.32,220.18,11.0238]
[1758588343426,3.30658265,220.31,220.19,6.94]
[1758588343634,3.30658265,220.3,220.19,6.94]
[1758588343835,3.30658265,220.29,220.2,4.0835]
[1758588344031,3.30658265,220.28,220.21,6.94]
[1758588344227,3.30658265,220.27,220.21,6.94]
[1758588344436,6.92,220.32,220.21,6.94]
[1758588344638,3.30766844,220.31,220.21,6.94]
[1758588344934,3.30766844,220.3,220.21,6.94]
[1758588345134,3.30766844,220.29,220.21,6.94]
[1758588345329,3.30766844,220.28,220.21,6.94]
[1758588345535,3.30766844,220.27,220.21,6.94]
[1758588345727,3.30766844,220.26,220.2,4.0835]
[1758588345928,6.92,220.32,220.21,6.94]
[1758588346230,3.30759127,220.31,220.21,6.94]
[1758588346431,6.92,220.32,220.21,6.94]
[1758588346432,3.30759127,220.3,220.21,6.94]
[1758588346638,3.30759127,220.29,220.21,6.94]
[1758588346831,3.30759127,220.28,220.21,6.94]
[1758588347135,3.30759127,220.27,220.21,6.94]
[1758588347331,3.30759127,220.26,220.21,6.94]
[1758588347535,4.0815,220.31,220.21,6.94]
[1758588347747,6.92,220.29,220.21,6.94]
[1758588347933,3.30989226,220.28,220.21,6.94]
[1758588352339,3.30989226,220.27,220.21,6.94]
[1758588352537,3.30989226,220.26,220.21,6.94]
[1758588352738,3.30989226,220.25,220.2,4.0835]
[1758588353042,3.30989226,220.24,220.21,6.94]
[1758588353243,6.92,220.24,220.18,6.94]
[1758588353446,3.31313601,220.23,220.17,4.0839]
[1758588353645,6.92,220.24,220.18,6.94]
[1758588353940,3.31292382,220.23,220.19,4.0836]
[1758588354146,6.92,220.29,220.2,6.94]
[1758588354448,3.31292382,220.28,220.2,6.94]
[1758588354744,3.31292382,220.27,220.2,6.94]
[1758588354940,3.31292382,220.26,220.2,6.94]
[1758588355145,3.31292382,220.25,220.21,63.5181]
[1758588355443,11.99850057,220.33,220.22,6.94]
[1758588355648,3.31226189,220.32,220.22,6.94]
[1758588355837,3.31226189,220.31,220.23,6.94]
[1758588356047,3.31226189,220.3,220.25,6.94]
[1758588356242,3.31226189,220.29,220.25,6.94]
[1758588356442,3.31226189,220.28,220.24,63.5095]
[1758588356746,3.31226189,220.27,220.26,6.94]
[1758588357949,10.23226189,220.27,220.23,6.94]
[1758588358144,3.31226189,220.26,220.23,6.94]
[1758588358447,3.31226189,220.25,220.22,4.0829]
[1758588358743,6.92,220.31,220.23,6.94]
[1758588358945,3.31221986,220.3,220.23,6.94]
[1758588359138,3.31221986,220.29,220.23,6.94]
[1758588359341,10.23221986,220.28,220.23,6.94]
[1758588359540,3.31221986,220.27,220.23,6.94]
[1758588359748,3.31221986,220.27,220.22,4.0829]
[1758588359948,3.31221986,220.27,220.23,6.94]
[1758588360658,3.3115059,220.26,220.23,6.94]
[1758588360948,3.3115059,220.25,220.18,7.04]
[1758588361150,6.92,220.28,220.18,7.04]
[1758588361354,3.30881808,220.27,220.18,7.04]
[1758588361544,7.3,220.25,220.18,7.04]
[1758588361749,3.30881808,220.24,220.18,7.04]
[1758588361954,10.60881808,220.23,220.18,7.04]
[1758588362247,10.60881808,220.22,220.18,7.04]
[1758588362448,7.3,220.22,220.18,7.04]
[1758588363257,4.0822,220.28,220.14,7.04]
[1758588363453,10.60843232,220.27,220.14,7.04]
[1758588363648,3.30843232,220.26,220.14,7.04]
[1758588363849,3.30843232,220.25,220.14,7.04]
[1758588364045,7.3,220.23,220.14,7.04]
[1758588364248,3.30843232,220.22,220.14,7.04]
[1758588364850,3.30843232,220.22,220.17,7.04]
[1758588365052,3.30843232,220.22,220.16,4.084]
[1758588365849,3.30843232,220.22,220.15,7.04]
[1758588366356,7.3,220.21,220.15,7.04]
[1758588366550,7.3,220.21,220.13,4.0846]
[1758588366751,3.30843232,220.2,220.13,4.0846]
[1758588366957,3.30843232,220.19,220.13,4.0846]
[1758588367251,10.60843232,220.18,220.13,11.1246]
[1758588367458,7.3,220.18,220.13,11.1246]
[1758588368059,3.30579614,220.17,220.1,4.0852]
[1758588368252,7.3,220.19,220.11,7.04]
[1758588368452,3.30426045,220.18,220.11,7.04]
[1758588368656,7.3,220.19,220.11,7.04]
[1758588368852,3.30423485,220.18,220.11,7.04]
[1758588369058,7.3,220.19,220.11,7.04]
[1758588369260,3.30334585,220.18,220.11,7.04]
[1758588369456,7.3,220.19,220.11,7.04]
[1758588369758,3.30328581,220.18,220.12,4.0849]
[1758588369958,7.3,220.19,220.12,4.0849]
[1758588370154,3.30328426,220.18,220.12,4.0849]
[1758588370457,7.3,220.19,220.12,4.0849]
[1758588370658,3.30234521,220.18,220.12,4.0849]
[1758588370855,7.3,220.19,220.12,4.0849]
[1758588371056,3.30225137,220.18,220.12,4.0849]
[1758588371256,7.3,220.19,220.12,4.0849]
[1758588371454,3.3012541,220.18,220.12,4.0849]
[1758588371650,3.3012541,220.18,220.11,7.04]
[1758588371651,7.3,220.19,220.15,7.04]
[1758588371853,4.0825,220.25,220.15,7.04]
[1758588372053,10.60180738,220.24,220.15,7.04]
[1758588372259,7.3,220.22,220.15,7.04]
[1758588372460,3.30180738,220.21,220.15,7.04]
[1758588372762,10.60180738,220.2,220.14,11.1245]
[1758588372964,7.3,220.2,220.14,11.1245]
[1758588373259,7.3,220.27,220.16,7.04]
[1758588373558,7.3,220.25,220.16,7.04]
[1758588373760,3.30072265,220.24,220.16,7.04]
[1758588374755,3.30072265,220.24,220.18,4.0838]
[1758588374960,7.3,220.23,220.16,7.04]
[1758588375172,3.30059696,220.22,220.16,7.04]
[1758588375373,7.3,220.23,220.16,7.04]
[1758588375568,3.30083485,220.22,220.16,7.04]
[1758588375770,7.3,220.23,220.16,7.04]
[1758588375965,3.30056024,220.22,220.16,7.04]
[1758588376167,7.3,220.23,220.16,7.04]
[1758588376366,3.30061008,220.22,220.16,7.04]
[1758588376670,7.3,220.23,220.16,7.04]
[1758588376870,7.3,220.23,220.1,2.22474472]
[1758588376871,7.25,220.21,220.12,7.44]
[1758588377069,3.30120493,220.2,220.12,7.44]
[1758588377270,3.30350276,220.19,220.12,7.44]
[1758588377467,7.25,220.21,220.12,7.44]
[1758588377672,6.30784472,220.22,220.12,7.44]
[1758588377673,7.25,220.19,220.12,7.44]
[1758588377858,3.3036467,220.18,220.12,7.44]
[1758588378059,7.25,220.19,220.12,7.44]
[1758588378262,3.30322065,220.18,220.12,7.44]
[1758588378458,7.25,220.19,220.12,7.44]
[1758588378666,3.30333477,220.18,220.12,7.44]
[1758588378872,7.25,220.19,220.12,7.44]
[1758588379170,3.30333477,220.18,220.12,7.44]
[1758588379375,7.25,220.19,220.12,7.44]
[1758588379571,3.30438759,220.18,220.12,7.44]
[1758588379759,10.55438759,220.17,220.11,4.085]
[1758588379963,3.30438759,220.16,220.12,7.44]
[1758588380172,3.30438759,220.16,220.11,4.085]
[1758588380368,3.30438759,220.16,220.12,7.44]
[1758588380568,3.30438759,220.16,220.11,4.085]
[1758588380770,7.25,220.17,220.11,11.525]
[1758588381664,3.24074128,220.16,220.11,7.44]
[1758588381872,7.25,220.2,220.11,7.44]
[1758588382062,3.24056658,220.19,220.11,7.44]
[1758588382262,10.49056658,220.18,220.11,7.44]
[1758588382571,3.24056658,220.17,220.11,7.44]
[1758588382774,3.24056658,220.16,220.1,4.0853]
[1758588382973,7.25,220.18,220.1,4.0853]
[1758588383267,3.24048005,220.17,220.1,4.0853]
[1758588383466,3.24048005,220.16,220.1,4.0853]
[1758588383766,7.25,220.18,220.11,4.085]
[1758588383967,3.24038745,220.17,220.11,4.085]
[1758588384263,3.24038745,220.16,220.12,7.44]
[1758588384469,7.25,220.23,220.14,7.44]
[1758588384668,3.2388518,220.22,220.14,7.44]
[1758588384973,3.2388518,220.21,220.14,7.44]
[1758588385275,3.2388518,220.2,220.14,7.44]
[1758588385470,3.2388518,220.19,220.11,7.44]
[1758588385666,3.2388518,220.18,220.11,7.44]
[1758588385868,3.2388518,220.17,220.14,4.0844]
[1758588386071,7.25,220.23,220.14,11.5244]
[1758588386266,3.23871908,220.22,220.14,11.5244]
[1758588386472,3.23871908,220.21,220.14,7.44]
[1758588386671,3.23871908,220.2,220.14,7.44]
[1758588386991,3.23871908,220.19,220.13,7.44]
[1758588387169,7.25,220.23,220.13,7.44]
[1758588387369,3.2393358,220.22,220.13,7.44]
[1758588387569,3.2393358,220.21,220.13,7.44]
[1758588387769,3.2393358,220.2,220.18,7.44]
[1758588387967,3.2393358,220.19,220.18,7.44]
[1758588388170,10.4893358,220.22,220.18,7.44]
[1758588388370,3.2393358,220.21,220.18,7.44]
[1758588389769,10.4893358,220.21,220.18,7.44]
[1758588389975,3.2393358,220.2,220.14,11.5244]
[1758588390176,3.2393358,220.19,220.14,4.0844]
[1758588390380,7.25,220.21,220.15,7.44]
[1758588390678,3.23883602,220.2,220.14,11.2644]
[1758588390871,10.37883602,220.19,220.15,7.18]
[1758588391072,7.14,220.19,220.15,7.18]
[1758588391475,7.14,220.24,220.15,7.18]
[1758588391677,3.23863795,220.23,220.16,4.0842]
[1758588391977,3.23863795,220.22,220.15,7.18]
[1758588392179,3.23863795,220.21,220.15,7.18]
[1758588392476,7.14,220.27,220.15,7.18]
[1758588392778,7.14,220.25,220.13,7.18]
[1758588392966,3.23908695,220.24,220.13,7.18]
[1758588393172,3.23908695,220.23,220.16,11.2642]
[1758588393474,3.23908695,220.22,220.16,7.18]
[1758588393669,7.14,220.21,220.11,7.18]
[1758588393978,3.23908695,220.2,220.13,4.0847]
[1758588394272,3.23908695,220.2,220.13,11.2647]
[1758588395475,7.14,220.19,220.1,4.0852]
[1758588395668,3.23908695,220.18,220.1,4.0852]
[1758588396772,7.14,220.17,220.09,7.18]
[1758588396980,3.23908695,220.16,220.09,7.18]
[1758588397880,3.23908695,220.16,220.09,11.2655]
[1758588401281,3.23908695,220.16,219.98,7.18]
[1758588401282,1.42600331,220.11,219.98,7.18]
[1758588401479,7.14,220.06,219.98,8.60600331]
[1758588401680,3.23908695,220.05,219.98,7.18]
[1758588402878,3.23908695,220.05,219.98,11.2675]
[1758588403784,3.23908695,220.05,220.0,4.0871]
[1758588404084,3.23908695,220.05,220.01,7.18]
[1758588404488,3.23908695,220.05,220.0,4.0871]
[1758588404986,3.23908695,220.05,220.01,7.18]
[1758588405180,8.56600331,220.11,220.03,7.18]
[1758588405489,3.25932584,220.1,220.03,8.60600331]
[1758588405693,3.25932584,220.09,220.03,7.18]
[1758588405985,3.25932584,220.08,220.02,4.0868]
[1758588406291,7.14,220.08,219.99,11.2673]
[1758588406485,1.42600331,220.05,219.99,7.18]
[1758588406689,3.25802552,220.04,219.99,7.18]
[1758588406988,8.56600331,220.05,219.95,8.60600331]
[1758588407286,1.42600331,220.03,219.95,7.18]
[1758588407887,10.39653708,220.02,219.95,7.18]
[1758588408090,7.14,220.02,219.95,7.18]
[1758588408487,7.14,220.02,219.94,7.18]
[1758588411992,7.14,220.02,219.95,4.0881]
[1758588413893,7.14,220.02,219.94,7.18]
[1758588414396,7.14,220.02,219.96,4.0879]
[1758588414590,7.14,220.04,219.97,7.18]
[1758588414798,4.68937337,220.03,219.94,1.42600331]
[1758588414999,1.42600331,220.03,219.94,1.42600331]
[1758588415894,8.56600331,220.01,219.93,7.18]
[1758588417393,8.56600331,220.01,219.93,11.2684]
[1758588419997,7.14,220.01,219.95,5.51400331]
[1758588420196,7.14,220.05,219.95,1.42600331]
[1758588420403,7.14,220.05,219.98,7.1]
[1758588421807,7.14,220.05,219.99,4.0873]
[1758588422701,3.26147067,220.04,219.99,4.0873]
[1758588422904,6.95,220.04,220.0,7.1]
[1758588424409,4.0859,220.07,220.0,7.1]
[1758588424613,8.37600331,220.04,219.96,11.1878]